fUSD/lending_fUSD_20260524
["ID","MTS","AMOUNT","RATE_DAILY","PERIOD"]
[422887498,1779575445000,-1247.23,0.00029,30]
[422887500,1779575445000,-1369.31,0.00029,2]
[422887503,1779575445000,-223.02,0.00029,2]
[422887499,1779575445000,-2073.46,0.00029,30]
[422887501,1779575445000,-2474.50455721,0.00029,2]
[422887502,1779575445000,-16625.89495303,0.00029,7]
[422887497,1779575445000,-200.0,0.00028985,2]
[422887504,1779575445000,-151.7,0.00029,7]
[422887507,1779575445000,-156.587,0.000291,2]
[422887505,1779575445000,-1116.66795068,0.00029043,2]
[422887506,1779575445000,-1116.66795068,0.00029092,2]
[422887508,1779575445000,-3730.72977313,0.000291,2]
[422887509,1779575445000,-187.78006524,0.000291,2]
[422887512,1779575445000,-200.0,0.00029166,2]
[422887510,1779575445000,-779.24,0.00029105,120]
[422887513,1779575445000,-200.0,0.00029202,2]
[422887475,1779575445000,-900.0,0.00028709,10]
[422887496,1779575445000,-703.0,0.00028965,6]
[422887495,1779575445000,-5000.0,0.00028925,2]
[422887511,1779575445000,-1116.66795068,0.00029148,2]
[422887494,1779575445000,-5000.0,0.00028925,2]
[422887474,1779575445000,-900.0,0.00028709,10]
[422887492,1779575445000,-5000.0,0.00028925,2]
[422887478,1779575445000,-900.0,0.00028709,10]
[422887480,1779575445000,-1328.27659266,0.00028827,2]
[422887476,1779575445000,-900.0,0.00028709,10]
[422887481,1779575445000,-194.72792766,0.00028827,2]
[422887484,1779575445000,-194.72792766,0.00028827,2]
[422887482,1779575445000,-200.0,0.00028827,2]
[422887479,1779575445000,-187.78006524,0.00028827,2]
[422887489,1779575445000,-449.16,0.0002884,7]
[422887487,1779575445000,-1247.23,0.00028838,2]
[422887488,1779575445000,-2073.46,0.00028838,2]
[422887486,1779575445000,-194.72792766,0.00028827,2]
[422887490,1779575445000,-150.0,0.00028897,2]
[422887483,1779575445000,-799.54513344,0.00028827,2]
[422887491,1779575445000,-5000.0,0.00028925,2]
[422887493,1779575445000,-5000.0,0.00028925,2]
[422887485,1779575445000,-301.0006985,0.00028827,2]
[422887558,1779575446000,-156.07399427,0.00029707,7]
[422887556,1779575446000,-216.77477109,0.000297,2]
[422887557,1779575446000,-216.77477109,0.000297,2]
[422887555,1779575446000,-216.77477112,0.000297,2]
[422887552,1779575446000,-1116.66795068,0.00029584,2]
[422887550,1779575446000,-1116.66795068,0.0002956,2]
[422887553,1779575446000,-1138.87467606,0.00029648,2]
[422887561,1779575446000,-153.0,0.00029824,30]
[422887562,1779575446000,-155.0,0.00029824,30]
[422887551,1779575446000,-1116.66795068,0.00029566,2]
[422887549,1779575446000,-350.0,0.00029529,8]
[422887560,1779575446000,-1116.66795068,0.00029782,2]
[422887546,1779575446000,-5000.0,0.00029527,2]
[422887554,1779575446000,-1116.66795068,0.00029694,2]
[422887559,1779575446000,-156.07399426,0.00029707,30]
[422887569,1779575446000,-441.0,0.0002983,30]
[422887565,1779575446000,-158.0,0.00029824,30]
[422887575,1779575446000,-543.0,0.0002983,30]
[422887564,1779575446000,-154.0,0.00029824,30]
[422887576,1779575446000,-203.0,0.0002983,30]
[422887568,1779575446000,-152.0,0.0002983,30]
[422887567,1779575446000,-5000.0,0.00029829,2]
[422887571,1779575446000,-196.0,0.0002983,30]
[422887566,1779575446000,-5000.0,0.00029829,2]
[422887573,1779575446000,-530.0,0.0002983,30]
[422887570,1779575446000,-152.0,0.0002983,30]
[422887577,1779575446000,-449.13,0.00029865,2]
[422887579,1779575446000,-1116.66795068,0.0002991,2]
[422887589,1779575446000,-800.0,0.00029935,2]
[422887539,1779575446000,-1355.0,0.00029456,2]
[422887563,1779575446000,-156.0,0.00029824,30]
[422887543,1779575446000,-1298.49622783,0.000295,40]
[422887534,1779575446000,-829.12830338,0.00029375,2]
[422887547,1779575446000,-5000.0,0.00029527,2]
[422887590,1779575446000,-800.0,0.00029935,2]
[422887520,1779575446000,-5000.0,0.00029226,2]
[422887521,1779575446000,-5000.0,0.00029226,2]
[422887518,1779575446000,-5000.0,0.00029226,2]
[422887514,1779575446000,-1116.66795068,0.00029209,2]
[422887519,1779575446000,-5000.0,0.00029226,2]
[422887515,1779575446000,-350.0,0.00029217,5]
[422887516,1779575446000,-1116.66795068,0.00029218,2]
[422887517,1779575446000,-1491.08539741,0.00029226,2]
[422887522,1779575446000,-1116.66795068,0.00029278,2]
[422887523,1779575446000,-350.0,0.00029284,5]
[422887524,1779575446000,-1500.0,0.000293,7]
[422887530,1779575446000,-194.72792766,0.00029375,2]
[422887525,1779575446000,-1574.12,0.000293,7]
[422887541,1779575446000,-3635.0,0.00029456,2]
[422887526,1779575446000,-700.0,0.00029308,60]
[422887528,1779575446000,-1116.66795068,0.00029349,2]
[422887535,1779575446000,-201.93286098,0.00029375,2]
[422887529,1779575446000,-1116.66795068,0.00029369,2]
[422887533,1779575446000,-200.0,0.00029375,2]
[422887531,1779575446000,-1377.42282658,0.00029375,2]
[422887532,1779575446000,-201.93286098,0.00029375,2]
[422887536,1779575446000,-312.13772435,0.00029375,2]
[422887538,1779575446000,-1224.0,0.00029456,2]
[422887548,1779575446000,-5000.0,0.00029527,2]
[422887537,1779575446000,-201.93286098,0.00029375,2]
[422887540,1779575446000,-1271.0,0.00029456,2]
[422887544,1779575446000,-703.0,0.0002952,6]
[422887542,1779575446000,-214.78,0.00029456,2]
[422887545,1779575446000,-1116.66795068,0.00029521,2]
[422887527,1779575446000,-1116.66795068,0.00029316,2]
[422887582,1779575446000,-209.40437684,0.00029923,2]
[422887624,1779575446000,-800.0,0.00029935,13]
[422887583,1779575446000,-200.0,0.00029923,2]
[422887629,1779575446000,-800.0,0.00029935,13]
[422887617,1779575446000,-800.0,0.00029935,2]
[422887618,1779575446000,-363.0,0.00029935,2]
[422887620,1779575446000,-800.0,0.00029935,13]
[422887630,1779575446000,-800.0,0.00029935,13]
[422887621,1779575446000,-800.0,0.00029935,13]
[422887622,1779575446000,-800.0,0.00029935,13]
[422887625,1779575446000,-800.0,0.00029935,13]
[422887627,1779575446000,-800.0,0.00029935,13]
[422887649,1779575446000,-200.0,0.00029935,2]
[422887623,1779575446000,-800.0,0.00029935,13]
[422887626,1779575446000,-800.0,0.00029935,13]
[422887631,1779575446000,-800.0,0.00029935,13]
[422887632,1779575446000,-800.0,0.00029935,13]
[422887619,1779575446000,-800.0,0.00029935,13]
[422887634,1779575446000,-800.0,0.00029935,13]
[422887643,1779575446000,-500.0,0.00029935,2]
[422887633,1779575446000,-800.0,0.00029935,13]
[422887639,1779575446000,-800.0,0.00029935,13]
[422887637,1779575446000,-800.0,0.00029935,13]
[422887640,1779575446000,-800.0,0.00029935,13]
[422887636,1779575446000,-800.0,0.00029935,13]
[422887641,1779575446000,-812.0,0.00029935,13]
[422887644,1779575446000,-500.0,0.00029935,2]
[422887638,1779575446000,-800.0,0.00029935,13]
[422887642,1779575446000,-500.0,0.00029935,2]
[422887645,1779575446000,-500.0,0.00029935,2]
[422887647,1779575446000,-511.0,0.00029935,2]
[422887646,1779575446000,-500.0,0.00029935,2]
[422887580,1779575446000,-201.93286098,0.00029923,2]
[422887635,1779575446000,-800.0,0.00029935,13]
[422887628,1779575446000,-800.0,0.00029935,13]
[422887648,1779575446000,-200.0,0.00029935,2]
[422887611,1779575446000,-800.0,0.00029935,2]
[422887614,1779575446000,-800.0,0.00029935,2]
[422887585,1779575446000,-209.40437684,0.00029923,2]
[422887578,1779575446000,-300.0,0.000299,10]
[422887581,1779575446000,-1428.38747117,0.00029923,2]
[422887584,1779575446000,-859.8060506,0.00029923,2]
[422887587,1779575446000,-209.40437684,0.00029923,2]
[422887588,1779575446000,-800.0,0.00029935,2]
[422887586,1779575446000,-323.68682015,0.00029923,2]
[422887591,1779575446000,-800.0,0.00029935,2]
[422887593,1779575446000,-800.0,0.00029935,2]
[422887592,1779575446000,-800.0,0.00029935,2]
[422887601,1779575446000,-800.0,0.00029935,2]
[422887599,1779575446000,-800.0,0.00029935,2]
[422887597,1779575446000,-800.0,0.00029935,2]
[422887598,1779575446000,-800.0,0.00029935,2]
[422887594,1779575446000,-800.0,0.00029935,2]
[422887600,1779575446000,-800.0,0.00029935,2]
[422887613,1779575446000,-800.0,0.00029935,2]
[422887596,1779575446000,-800.0,0.00029935,2]
[422887616,1779575446000,-800.0,0.00029935,2]
[422887615,1779575446000,-800.0,0.00029935,2]
[422887610,1779575446000,-800.0,0.00029935,2]
[422887606,1779575446000,-800.0,0.00029935,2]
[422887612,1779575446000,-800.0,0.00029935,2]
[422887609,1779575446000,-800.0,0.00029935,2]
[422887604,1779575446000,-800.0,0.00029935,2]
[422887608,1779575446000,-800.0,0.00029935,2]
[422887605,1779575446000,-800.0,0.00029935,2]
[422887603,1779575446000,-800.0,0.00029935,2]
[422887595,1779575446000,-800.0,0.00029935,2]
[422887602,1779575446000,-800.0,0.00029935,2]
[422887607,1779575446000,-800.0,0.00029935,2]
[422887692,1779575447000,-200.0,0.00029935,2]
[422887694,1779575447000,-200.0,0.00029935,2]
[422887693,1779575447000,-200.0,0.00029935,2]
[422887690,1779575447000,-200.0,0.00029935,2]
[422887681,1779575447000,-800.0,0.00029935,13]
[422887687,1779575447000,-800.0,0.00029935,13]
[422887688,1779575447000,-800.0,0.00029935,13]
[422887689,1779575447000,-800.0,0.00029935,13]
[422887686,1779575447000,-800.0,0.00029935,13]
[422887685,1779575447000,-800.0,0.00029935,13]
[422887695,1779575447000,-200.0,0.00029935,2]
[422887691,1779575447000,-200.0,0.00029935,2]
[422887697,1779575447000,-200.0,0.00029935,2]
[422887705,1779575447000,-200.0,0.00029935,2]
[422887699,1779575447000,-200.0,0.00029935,2]
[422887708,1779575447000,-200.0,0.00029935,2]
[422887707,1779575447000,-200.0,0.00029935,2]
[422887710,1779575447000,-500.0,0.00029935,2]
[422887711,1779575447000,-200.0,0.00029935,2]
[422887698,1779575447000,-200.0,0.00029935,2]
[422887709,1779575447000,-200.0,0.00029935,2]
[422887700,1779575447000,-200.0,0.00029935,2]
[422887701,1779575447000,-767.0,0.00029935,13]
[422887706,1779575447000,-200.0,0.00029935,2]
[422887703,1779575447000,-200.0,0.00029935,2]
[422887702,1779575447000,-200.0,0.00029935,2]
[422887704,1779575447000,-200.0,0.00029935,2]
[422887682,1779575447000,-800.0,0.00029935,13]
[422887696,1779575447000,-200.0,0.00029935,2]
[422887683,1779575447000,-800.0,0.00029935,13]
[422887660,1779575447000,-800.0,0.00029935,13]
[422887680,1779575447000,-800.0,0.00029935,13]
[422887712,1779575447000,-200.0,0.00029935,2]
[422887658,1779575447000,-800.0,0.00029935,13]
[422887657,1779575447000,-800.0,0.00029935,13]
[422887659,1779575447000,-800.0,0.00029935,13]
[422887651,1779575447000,-800.0,0.00029935,13]
[422887650,1779575447000,-200.0,0.00029935,2]
[422887653,1779575447000,-800.0,0.00029935,13]
[422887652,1779575447000,-800.0,0.00029935,13]
[422887654,1779575447000,-800.0,0.00029935,13]
[422887655,1779575447000,-800.0,0.00029935,13]
[422887656,1779575447000,-800.0,0.00029935,13]
[422887661,1779575447000,-200.0,0.00029935,2]
[422887671,1779575447000,-200.0,0.00029935,2]
[422887670,1779575447000,-200.0,0.00029935,2]
[422887684,1779575447000,-800.0,0.00029935,13]
[422887672,1779575447000,-200.0,0.00029935,2]
[422887665,1779575447000,-200.0,0.00029935,2]
[422887662,1779575447000,-200.0,0.00029935,2]
[422887664,1779575447000,-200.0,0.00029935,2]
[422887667,1779575447000,-200.0,0.00029935,2]
[422887668,1779575447000,-200.0,0.00029935,2]
[422887669,1779575447000,-200.0,0.00029935,2]
[422887666,1779575447000,-200.0,0.00029935,2]
[422887675,1779575447000,-800.0,0.00029935,13]
[422887674,1779575447000,-200.0,0.00029935,2]
[422887673,1779575447000,-200.0,0.00029935,2]
[422887676,1779575447000,-800.0,0.00029935,13]
[422887679,1779575447000,-800.0,0.00029935,13]
[422887677,1779575447000,-800.0,0.00029935,13]
[422887678,1779575447000,-800.0,0.00029935,13]
[422887663,1779575447000,-200.0,0.00029935,2]
[422887715,1779575447000,-200.0,0.00029935,2]
[422887731,1779575447000,-163.12815812,0.0002994,2]
[422887716,1779575447000,-200.0,0.00029935,2]
[422887747,1779575447000,-419.19906099,0.0002994,7]
[422887762,1779575447000,-330.30277906,0.00029941,7]
[422887754,1779575447000,-359.08029011,0.00029941,7]
[422887753,1779575447000,-350.66533401,0.00029941,2]
[422887764,1779575447000,-154.43407117,0.00029941,7]
[422887758,1779575447000,-486.3902875,0.00029941,7]
[422887756,1779575447000,-381.28074957,0.00029941,7]
[422887766,1779575447000,-156.54179993,0.00029941,7]
[422887713,1779575447000,-200.0,0.00029935,2]
[422887759,1779575447000,-336.12068213,0.00029941,7]
[422887757,1779575447000,-649.23404981,0.00029941,7]
[422887760,1779575447000,-350.68846326,0.00029941,7]
[422887768,1779575447000,-307.18382872,0.00029942,7]
[422887770,1779575447000,-330.23773352,0.00029942,7]
[422887784,1779575447000,-150.38351533,0.00029942,7]
[422887785,1779575447000,-200.0,0.00029995,2]
[422887788,1779575447000,-5000.0,0.0003003,2]
[422887790,1779575447000,-703.0,0.00030075,7]
[422887787,1779575447000,-192.54277369,0.0003003,2]
[422887772,1779575447000,-385.44969086,0.00029942,7]
[422887786,1779575447000,-250.0,0.00030027,7]
[422887789,1779575447000,-1116.66795068,0.00030035,2]
[422887774,1779575447000,-343.99396711,0.00029942,7]
[422887782,1779575447000,-175.79596264,0.00029942,7]
[422887781,1779575447000,-187.62149292,0.00029942,7]
[422887777,1779575447000,-396.65976971,0.00029942,7]
[422887779,1779575447000,-189.12907061,0.00029942,7]
[422887792,1779575447000,-200.0,0.000301,10]
[422887791,1779575447000,-1116.66795068,0.00030098,2]
[422887749,1779575447000,-317.78012145,0.00029941,7]
[422887748,1779575447000,-156.31519741,0.00029941,7]
[422887755,1779575447000,-522.3957212,0.00029941,7]
[422887744,1779575447000,-182.13126067,0.0002994,7]
[422887714,1779575447000,-200.0,0.00029935,2]
[422887722,1779575447000,-200.0,0.00029935,2]
[422887721,1779575447000,-200.0,0.00029935,2]
[422887723,1779575447000,-200.0,0.00029935,2]
[422887746,1779575447000,-185.52384206,0.0002994,7]
[422887717,1779575447000,-160.0,0.00029935,2]
[422887718,1779575447000,-200.0,0.00029935,2]
[422887724,1779575447000,-200.0,0.00029935,2]
[422887720,1779575447000,-200.0,0.00029935,2]
[422887726,1779575447000,-200.0,0.00029935,2]
[422887727,1779575447000,-200.0,0.00029935,2]
[422887725,1779575447000,-200.0,0.00029935,2]
[422887736,1779575447000,-215.06071708,0.0002994,7]
[422887728,1779575447000,-200.0,0.00029935,2]
[422887737,1779575447000,-204.99663607,0.0002994,7]
[422887719,1779575447000,-200.0,0.00029935,2]
[422887729,1779575447000,-342.0,0.00029935,2]
[422887738,1779575447000,-202.55868336,0.0002994,7]
[422887743,1779575447000,-201.60527858,0.0002994,7]
[422887742,1779575447000,-174.21086895,0.0002994,7]
[422887751,1779575447000,-645.84969346,0.00029941,7]
[422887739,1779575447000,-152.27649945,0.0002994,7]
[422887741,1779575447000,-170.86911984,0.0002994,7]
[422887752,1779575447000,-339.92611746,0.00029941,7]
[422887740,1779575447000,-314.66566931,0.0002994,7]
[422887733,1779575447000,-197.93625604,0.0002994,7]
[422887732,1779575447000,-327.65546478,0.0002994,7]
[422887734,1779575447000,-322.56880617,0.0002994,7]
[422887735,1779575447000,-199.30702914,0.0002994,7]
[422887750,1779575447000,-167.01972325,0.00029941,7]
[422887730,1779575447000,-158.0,0.00029939,5]
[422887808,1779575448000,-11.62009185,0.00019849,2]
[422887813,1779575448000,-500.0,0.00020599,2]
[422887807,1779575448000,-488.37990815,0.00019849,2]
[422887810,1779575448000,-500.0,0.00027416,10]
[422887811,1779575448000,-4879.44990815,0.0003013,7]
[422887812,1779575448000,-150.0,0.0002058,2]
[422887814,1779575448000,-630.0,0.00021918,2]
[422887805,1779575448000,-263.5456,0.00014999,2]
[422887809,1779575448000,-630.0,0.00021918,2]
[422887804,1779575448000,-236.4544,0.00014999,2]
[422887796,1779575448000,-200.0,0.000301,2]
[422887801,1779575448000,-1246670.00524812,0.0003013,7]
[422887800,1779575448000,-3000.0,0.00030129,2]
[422887798,1779575448000,-500.0,0.00030129,7]
[422887799,1779575448000,-400.0,0.00030129,7]
[422887797,1779575448000,-1116.66795068,0.00030125,2]
[422887802,1779575448000,-1068.98655423,0.0003013,7]
[422887795,1779575448000,-3037.72719594,0.000301,2]
[422887793,1779575448000,-194.168,0.000301,22]
[422887794,1779575448000,-3037.72719594,0.000301,2]
[422887803,1779575448000,-500.0,0.00014999,2]
[422887818,1779575448000,-500.0,0.00024999,2]
[422887806,1779575448000,-500.0,0.00017899,2]
[422887819,1779575448000,-500.0,0.00024999,2]
[422887820,1779575448000,-500.0,0.00024999,2]
[422887838,1779575448000,-431.885,0.00021918,2]
[422887837,1779575448000,-22.56130631,0.0003013,7]
[422887835,1779575448000,-183.15826538,0.00028709,10]
[422887834,1779575448000,-254.84173462,0.00028709,10]
[422887831,1779575448000,-158.97,0.00028033,30]
[422887829,1779575448000,-414.6895606,0.00028023,10]
[422887827,1779575448000,-158.97,0.0002784,2]
[422887830,1779575448000,-7950.7404394,0.00028023,10]
[422887828,1779575448000,-158.97,0.00027936,7]
[422887836,1779575448000,-156.3152,0.00029642,7]
[422887826,1779575448000,-158.97,0.00027743,30]
[422887833,1779575448000,-418.0,0.00028428,2]
[422887815,1779575448000,-630.0,0.00021918,2]
[422887822,1779575448000,-238.11129194,0.00024999,2]
[422887817,1779575448000,-249.82031255,0.00022428,2]
[422887816,1779575448000,-168.17968745,0.00022428,2]
[422887823,1779575448000,-418.0,0.00025428,2]
[422887824,1779575448000,-158.97,0.0002755,2]
[422887825,1779575448000,-158.97,0.00027646,7]
[422887832,1779575448000,-158.97,0.0002813,2]
[422887821,1779575448000,-500.0,0.00024999,2]
[422887839,1779575618000,244.13,0.00025423,120]
[422887865,1779576631000,-1260.29299736,0.00015038,2]
[422887868,1779576631000,-279.55361116,0.000158,2]
[422887863,1779576631000,-300.0,0.00015037,2]
[422887864,1779576631000,-2500.0,0.00015038,2]
[422887867,1779576631000,-151.0,0.000158,2]
[422887877,1779576631000,-1337.2,0.00016438,2]
[422887870,1779576631000,-150.0,0.00016,2]
[422887882,1779576631000,-178.23,0.00017063,2]
[422887881,1779576631000,-167.7,0.00016712,2]
[422887869,1779576631000,-281.88214739,0.00016,2]
[422887861,1779576631000,-300.0,0.00015003,2]
[422887880,1779576631000,-300.0,0.00016498,2]
[422887862,1779576631000,-208.78535381,0.00015024,2]
[422887855,1779576631000,-500.0,0.00014999,2]
[422887859,1779576631000,-500.0,0.00014999,2]
[422887858,1779576631000,-500.0,0.00014999,2]
[422887857,1779576631000,-500.0,0.00014999,2]
[422887856,1779576631000,-500.0,0.00014999,2]
[422887850,1779576631000,-300.0,0.00014998,2]
[422887854,1779576631000,-500.0,0.00014999,2]
[422887849,1779576631000,-300.0,0.00014998,2]
[422887848,1779576631000,-1200.0,0.00014998,2]
[422887853,1779576631000,-500.0,0.00014999,2]
[422887851,1779576631000,-2500.0,0.00014998,2]
[422887873,1779576631000,-283.0,0.00016165,2]
[422887852,1779576631000,-500.0,0.00014999,2]
[422887847,1779576631000,-163.47,0.00014998,2]
[422887860,1779576631000,-300.0,0.00015003,2]
[422887878,1779576631000,-2500.0,0.00016498,2]
[422887866,1779576631000,-281.88214739,0.000158,2]
[422887875,1779576631000,-281.88214739,0.000164,2]
[422887874,1779576631000,-281.88214739,0.000163,2]
[422887903,1779576631000,-2000.0,0.00019427,2]
[422887902,1779576631000,-20413.48,0.00019178,2]
[422887908,1779576631000,-1449.0,0.0002,2]
[422887901,1779576631000,-187.03,0.00018995,2]
[422887900,1779576631000,-166.66,0.00018551,2]
[422887905,1779576631000,-155.0,0.0002,2]
[422887906,1779576631000,-163.1982031,0.0002,2]
[422887907,1779576631000,-447.0,0.0002,2]
[422887898,1779576631000,-5116.19060099,0.00018533,2]
[422887899,1779576631000,-4883.79939901,0.00018533,2]
[422887889,1779576631000,-160.34,0.00017784,2]
[422887890,1779576631000,-587.0,0.00017965,2]
[422887897,1779576631000,-453.2,0.00018533,2]
[422887904,1779576631000,-900.0,0.00019839,2]
[422887888,1779576631000,-200.0,0.00017628,2]
[422887876,1779576631000,-420.0,0.00016415,2]
[422887896,1779576631000,-900.0,0.00018469,2]
[422887871,1779576631000,-215.31523495,0.00016055,2]
[422887872,1779576631000,-281.88214739,0.000161,2]
[422887885,1779576631000,-187.03,0.00017268,2]
[422887886,1779576631000,-2000.0,0.00017269,2]
[422887879,1779576631000,-300.0,0.00016498,2]
[422887893,1779576631000,-187.03,0.00018131,2]
[422887892,1779576631000,-166.78,0.00018,2]
[422887884,1779576631000,-200.0,0.00017127,2]
[422887887,1779576631000,-699.31,0.00017274,2]
[422887895,1779576631000,-1337.2,0.0001841,2]
[422887894,1779576631000,-165.96,0.00018384,2]
[422887934,1779576632000,-500.0,0.00020309,2]
[422887933,1779576632000,-500.0,0.00020309,2]
[422887940,1779576632000,-500.0,0.00020309,2]
[422887935,1779576632000,-500.0,0.00020309,2]
[422887936,1779576632000,-500.0,0.00020309,2]
[422887937,1779576632000,-500.0,0.00020309,2]
[422887939,1779576632000,-500.0,0.00020309,2]
[422887938,1779576632000,-500.0,0.00020309,2]
[422887941,1779576632000,-500.0,0.00020309,2]
[422887946,1779576632000,-500.0,0.00020309,2]
[422887943,1779576632000,-500.0,0.00020309,2]
[422887944,1779576632000,-500.0,0.00020309,2]
[422887945,1779576632000,-500.0,0.00020309,2]
[422887948,1779576632000,-500.0,0.00020309,2]
[422887947,1779576632000,-500.0,0.00020309,2]
[422887958,1779576632000,-500.0,0.00020309,2]
[422887928,1779576632000,-500.0,0.00020309,2]
[422887960,1779576632000,-500.0,0.00020309,2]
[422887942,1779576632000,-500.0,0.00020309,2]
[422887932,1779576632000,-400.30250744,0.00020309,2]
[422887915,1779576632000,-1764.0,0.0002,2]
[422887931,1779576632000,-500.0,0.00020309,2]
[422887950,1779576632000,-500.0,0.00020309,2]
[422887910,1779576632000,-224.0,0.0002,2]
[422887909,1779576632000,-157.0,0.0002,2]
[422887911,1779576632000,-397.0,0.0002,2]
[422887912,1779576632000,-159.0,0.0002,2]
[422887913,1779576632000,-344.0,0.0002,2]
[422887916,1779576632000,-167.7,0.0002023,2]
[422887918,1779576632000,-5021.52450456,0.00020281,2]
[422887914,1779576632000,-352.0,0.0002,2]
[422887922,1779576632000,-500.0,0.00020309,2]
[422887921,1779576632000,-500.0,0.00020309,2]
[422887917,1779576632000,-886.18710515,0.00020281,2]
[422887919,1779576632000,-199.68624318,0.00020309,2]
[422887923,1779576632000,-500.0,0.00020309,2]
[422887920,1779576632000,-500.0,0.00020309,2]
[422887925,1779576632000,-500.0,0.00020309,2]
[422887924,1779576632000,-500.0,0.00020309,2]
[422887927,1779576632000,-500.0,0.00020309,2]
[422887930,1779576632000,-500.0,0.00020309,2]
[422887929,1779576632000,-500.0,0.00020309,2]
[422887961,1779576632000,-494.50357481,0.00020309,2]
[422887926,1779576632000,-500.0,0.00020309,2]
[422887959,1779576632000,-500.0,0.00020309,2]
[422887996,1779576632000,-474.92262875,0.00020309,2]
[422887974,1779576632000,-500.0,0.00020309,2]
[422887979,1779576632000,-500.0,0.00020309,2]
[422887985,1779576632000,-500.0,0.00020309,2]
[422887987,1779576632000,-500.0,0.00020309,2]
[422887980,1779576632000,-500.0,0.00020309,2]
[422887988,1779576632000,-500.0,0.00020309,2]
[422887986,1779576632000,-500.0,0.00020309,2]
[422887982,1779576632000,-500.0,0.00020309,2]
[422887984,1779576632000,-102.12662121,0.00020309,2]
[422887981,1779576632000,-500.0,0.00020309,2]
[422887983,1779576632000,-397.87337879,0.00020309,2]
[422887991,1779576632000,-500.0,0.00020309,2]
[422887990,1779576632000,-500.0,0.00020309,2]
[422887995,1779576632000,-550.17875004,0.00020309,2]
[422887994,1779576632000,-500.0,0.00020309,2]
[422887993,1779576632000,-500.0,0.00020309,2]
[422887992,1779576632000,-500.0,0.00020309,2]
[422887949,1779576632000,-500.0,0.00020309,2]
[422887973,1779576632000,-500.0,0.00020309,2]
[422887977,1779576632000,-500.0,0.00020309,2]
[422887989,1779576632000,-500.0,0.00020309,2]
[422887976,1779576632000,-239.45554675,0.00020309,2]
[422887954,1779576632000,-500.0,0.00020309,2]
[422887952,1779576632000,-490.03025074,0.00020309,2]
[422887951,1779576632000,-500.0,0.00020309,2]
[422887953,1779576632000,-500.0,0.00020309,2]
[422887972,1779576632000,-500.0,0.00020309,2]
[422887955,1779576632000,-500.0,0.00020309,2]
[422887957,1779576632000,-500.0,0.00020309,2]
[422887963,1779576632000,-500.0,0.00020309,2]
[422887964,1779576632000,-500.0,0.00020309,2]
[422887962,1779576632000,-500.0,0.00020309,2]
[422887956,1779576632000,-500.0,0.00020309,2]
[422887966,1779576632000,-271.1383448,0.00020309,2]
[422887967,1779576632000,-500.0,0.00020309,2]
[422887969,1779576632000,-500.0,0.00020309,2]
[422887970,1779576632000,-500.0,0.00020309,2]
[422887971,1779576632000,-500.0,0.00020309,2]
[422887968,1779576632000,-500.0,0.00020309,2]
[422887975,1779576632000,-500.0,0.00020309,2]
[422887978,1779576632000,-500.0,0.00020309,2]
[422887965,1779576632000,-228.8616552,0.00020309,2]
[422888021,1779576637000,-550.17875004,0.00020309,2]
[422888015,1779576637000,-500.0,0.00020309,2]